fUSD/lending_fUSD_20250906
["ID","MTS","AMOUNT","RATE_DAILY","PERIOD"]
[383911956,1757171533976,-452.6,0.00037534,8]
[383911957,1757171533986,-400.0,0.00037534,8]
[383911958,1757171533997,-400.0,0.00037534,8]
[383911959,1757171534007,-1283.92,0.00037534,8]
[383911960,1757171534018,-579.45,0.00037534,8]
[383911961,1757171534028,-651.77,0.00037534,8]
[383911962,1757171534038,-400.0,0.00037534,8]
[383911963,1757171534049,-416.84173239,0.00037534,8]
[383911964,1757171534058,-400.0,0.00037534,8]
[383911965,1757171534069,-490.29,0.00037534,8]
[383911966,1757171534079,-400.0,0.00037534,8]
[383911967,1757171534090,-400.0,0.00037534,8]
[383911968,1757171534101,-400.0,0.00037534,8]
[383911969,1757171534111,-496.46395012,0.00037534,8]
[383911970,1757171534121,-400.0,0.00037534,8]
[383911971,1757171534132,-406.7388862,0.00037534,8]
[383911972,1757171534143,-400.0,0.00037534,8]
[383911973,1757171534154,-400.0,0.00037534,8]
[383911974,1757171534164,-411.11372403,0.00037534,8]
[383911975,1757171534175,-400.0,0.00037534,8]
[383911976,1757171534186,-400.0,0.00037534,8]
[383911977,1757171534197,-513.66,0.00037534,8]
[383911978,1757171534207,-400.0,0.00037534,8]
[383911979,1757171534218,-675.35,0.00037534,8]
[383911980,1757171534228,-400.0,0.00037534,8]
[383911981,1757171534239,-400.0,0.00037534,8]
[383911982,1757171534250,-400.0,0.00037534,8]
[383911983,1757171534260,-400.0,0.00037534,8]
[383911984,1757171534271,-362.03083081,0.00037534,8]
[383911985,1757171534281,-400.0,0.00037534,8]
[383911986,1757171534291,-400.0,0.00037534,8]
[383911987,1757171534302,-546.31,0.00037534,8]
[383911988,1757171534312,-400.0,0.00037534,8]
[383911989,1757171534322,-400.0,0.00037534,8]
[383911990,1757171534332,-400.0,0.00037534,8]
[383911991,1757171534343,-559.97,0.00037534,8]
[383911992,1757171534352,-408.07,0.00037534,8]
[383911993,1757171534364,-400.0,0.00037534,8]
[383911994,1757171534374,-400.0,0.00037534,8]
[383911995,1757171534385,-400.0,0.00037534,8]
[383911996,1757171534394,-928.94,0.00037534,8]
[383911997,1757171534405,-440.94,0.00037534,8]
[383911998,1757171534417,-499.33,0.00037534,8]
[383911999,1757171534427,-495.94,0.00037534,8]
[383912000,1757171534438,-400.0,0.00037534,8]
[383912001,1757171534449,-400.0,0.00037534,8]
[383912002,1757171534460,-400.0,0.00037534,8]
[383912003,1757171534470,-186.49102379,0.00037534,8]
[383912004,1757171534480,-400.0,0.00037534,8]
[383912005,1757171534491,-400.0,0.00037534,8]
[383912006,1757171534501,-400.0,0.00037534,8]
[383912007,1757171534512,-400.0,0.00037534,8]
[383912008,1757171534522,-400.0,0.00037534,8]
[383912009,1757171534531,-400.0,0.00037534,8]
[383912010,1757171534542,-400.0,0.00037534,8]
[383912011,1757171534552,-400.0,0.00037534,8]
[383912012,1757171534566,-400.0,0.00037534,8]
[383912013,1757171534577,-400.0,0.00037534,8]
[383912014,1757171534587,-766.11,0.00037534,8]
[383912015,1757171534599,-443.26405219,0.00037534,8]
[383912016,1757171534610,-400.0,0.00037534,8]
[383912017,1757171534621,-400.0,0.00037534,8]
[383912018,1757171534632,-442.65,0.00037534,8]
[383912019,1757171534642,-400.0,0.00037534,8]
[383912020,1757171534653,-400.0,0.00037534,8]
[383912021,1757171534663,-400.0,0.00037534,8]
[383912022,1757171534673,-400.0,0.00037534,8]
[383912023,1757171534683,-410.17,0.00037534,8]
[383912024,1757171534694,-400.0,0.00037534,8]
[383912025,1757171534703,-250.61498243,0.00037534,8]
[383912026,1757171534714,-400.0,0.00037534,8]
[383912027,1757171534724,-535.64,0.00037534,8]
[383912028,1757171534734,-468.67285473,0.00037534,8]
[383912029,1757171534745,-400.0,0.00037534,8]
[383912030,1757171534755,-400.0,0.00037534,8]
[383912031,1757171534766,-400.0,0.00037534,8]
[383912032,1757171534776,-400.0,0.00037534,8]
[383912033,1757171534786,-400.0,0.00037534,8]
[383912034,1757171534797,-400.0,0.00037534,8]
[383912035,1757171534807,-400.0,0.00037534,8]
[383912036,1757171534818,-400.0,0.00037534,8]
[383912037,1757171534828,-432.64,0.00037534,8]
[383912038,1757171534838,-400.0,0.00037534,8]
[383912039,1757171534848,-400.0,0.00037534,8]
[383912040,1757171534859,-653.85,0.00037534,8]
[383912041,1757171534869,-400.0,0.00037534,8]
[383912042,1757171534880,-400.0,0.00037534,8]
[383912043,1757171534890,-400.0,0.00037534,8]
[383912044,1757171534900,-400.0,0.00037534,8]
[383912045,1757171534911,-430.22,0.00037534,8]
[383912046,1757171534922,-400.0,0.00037534,8]
[383912047,1757171534932,-415.81726068,0.00037534,8]
[383912048,1757171534942,-400.0,0.00037534,8]
[383912049,1757171534953,-400.0,0.00037534,8]
[383912050,1757171534963,-400.0,0.00037534,8]
[383912051,1757171534974,-400.0,0.00037534,8]
[383912052,1757171534984,-400.0,0.00037534,8]
[383912053,1757171534994,-493.95,0.00037534,8]
[383912054,1757171535004,-400.0,0.00037534,8]
[383912055,1757171535014,-400.0,0.00037534,8]
[383912056,1757171535024,-400.0,0.00037534,8]
[383912057,1757171535035,-400.0,0.00037534,8]
[383912058,1757171535045,-400.0,0.00037534,8]
[383912059,1757171535055,-400.0,0.00037534,8]
[383912060,1757171535065,-400.0,0.00037534,8]
[383912061,1757171535076,-400.0,0.00037534,8]
[383912062,1757171535086,-400.0,0.00037534,8]
[383912063,1757171535096,-425.32,0.00037534,8]
[383912064,1757171535106,-430.44,0.00037534,8]
[383912065,1757171535116,-400.0,0.00037534,8]
[383912066,1757171535126,-469.95,0.00037534,8]
[383912067,1757171535138,-1274.53,0.00037534,8]
[383912068,1757171535148,-658.76,0.00037534,8]
[383912069,1757171535158,-460.86,0.00037534,8]
[383912070,1757171535168,-578.72,0.00037534,8]
[383912071,1757171535178,-400.0,0.00037534,8]
[383912072,1757171535189,-1619.0,0.00037534,8]
[383912073,1757171535199,-400.0,0.00037534,8]
[383912074,1757171535210,-408.29,0.00037534,8]
[383912075,1757171535220,-404.0688942,0.00037534,8]
[383912076,1757171535230,-530.59,0.00037534,8]
[383912077,1757171535240,-400.0,0.00037534,8]
[383912078,1757171535250,-400.0,0.00037534,8]
[383912079,1757171535260,-424.86,0.00037534,8]
[383912080,1757171535271,-400.0,0.00037534,8]
[383912081,1757171535281,-956.04,0.00037534,8]
[383912082,1757171535290,-541.48,0.00037534,8]
[383912083,1757171535300,-400.0,0.00037534,8]
[383912084,1757171535311,-400.0,0.00037534,8]
[383912085,1757171535321,-400.0,0.00037534,8]
[383912086,1757171535546,-400.0,0.00037534,8]
[383912087,1757171535559,-430.11676828,0.00037534,8]
[383912088,1757171535569,-735.46,0.00037534,8]
[383912089,1757171535579,-400.0,0.00037534,8]
[383912090,1757171535589,-400.0,0.00037534,8]
[383912091,1757171535599,-400.0,0.00037534,8]
[383912092,1757171535609,-400.0,0.00037534,8]
[383912093,1757171535619,-450.24,0.00037534,8]
[383912094,1757171535632,-407.34,0.00037534,8]
[383912095,1757171535643,-400.0,0.00037534,8]
[383912096,1757171535653,-400.0,0.00037534,8]
[383912097,1757171535662,-522.41,0.00037534,8]
[383912098,1757171535673,-468.39,0.00037534,8]
[383912099,1757171535683,-400.0,0.00037534,8]
[383912100,1757171535693,-455.66,0.00037534,8]
[383912101,1757171535703,-400.0,0.00037534,8]
[383912102,1757171535712,-400.0,0.00037534,8]
[383912103,1757171535723,-400.0,0.00037534,8]
[383912104,1757171535734,-463.95,0.00037534,8]
[383912105,1757171535743,-400.0,0.00037534,8]
[383912106,1757171535753,-400.0,0.00037534,8]
[383912107,1757171535763,-420.09,0.00037534,8]
[383912108,1757171535773,-638.69,0.00037534,8]
[383912109,1757171535782,-236.94651138,0.00037534,8]
[383912110,1757171535792,-400.0,0.00037534,8]
[383912111,1757171535802,-400.0,0.00037534,8]
[383912112,1757171535812,-400.0,0.00037534,8]
[383912113,1757171535823,-491.96,0.00037534,8]
[383912114,1757171535833,-488.58,0.00037534,8]
[383912115,1757171535843,-417.05116933,0.00037534,8]
[383912116,1757171535852,-400.0,0.00037534,8]
[383912117,1757171535862,-400.0,0.00037534,8]
[383912118,1757171535872,-400.0,0.00037534,8]
[383912119,1757171535882,-400.0,0.00037534,8]
[383912120,1757171535892,-400.0,0.00037534,8]
[383912121,1757171535903,-400.0,0.00037534,8]
[383912122,1757171535913,-400.0,0.00037534,8]
[383912123,1757171535923,-945.42,0.00037534,8]
[383912124,1757171535933,-447.74,0.00037534,8]
[383912125,1757171535943,-424.90401417,0.00037534,8]
[383912126,1757171535953,-400.0,0.00037534,8]
[383912127,1757171535963,-417.10010302,0.00037534,8]
[383912128,1757171535974,-400.0,0.00037534,8]
[383912129,1757171535983,-400.0,0.00037534,8]
[383912130,1757171535994,-400.0,0.00037534,8]
[383912131,1757171536003,-400.0,0.00037534,8]
[383912132,1757171536013,-400.0,0.00037534,8]
[383912133,1757171536022,-400.0,0.00037534,8]
[383912134,1757171536032,-400.0,0.00037534,8]
[383912135,1757171536043,-400.0,0.00037534,8]
[383912136,1757171536053,-400.0,0.00037534,8]
[383912137,1757171536063,-400.0,0.00037534,8]
[383912138,1757171536073,-400.0,0.00037534,8]
[383912139,1757171536083,-400.0,0.00037534,8]
[383912140,1757171536092,-400.0,0.00037534,8]
[383912141,1757171536103,-400.0,0.00037534,8]
[383912142,1757171536113,-400.0,0.00037534,8]
[383912143,1757171536122,-400.0,0.00037534,8]
[383912144,1757171536133,-400.0,0.00037534,8]
[383912145,1757171536143,-400.0,0.00037534,8]
[383912146,1757171536153,-400.0,0.00037534,8]
[383912147,1757171536163,-492.35,0.00037534,8]
[383912148,1757171536172,-400.0,0.00037534,8]
[383912149,1757171536182,-400.0,0.00037534,8]
[383912150,1757171536191,-400.0,0.00037534,8]
[383912151,1757171536201,-400.0,0.00037534,8]
[383912152,1757171536210,-400.0,0.00037534,8]
[383912153,1757171536220,-400.0,0.00037534,8]
[383912154,1757171536230,-400.0,0.00037534,8]
[383912155,1757171536240,-404.69,0.00037534,8]
[383912156,1757171536250,-647.23,0.00037534,8]
[383912157,1757171536260,-400.0,0.00037534,8]
[383912158,1757171536270,-400.0,0.00037534,8]
[383912159,1757171536280,-400.0,0.00037534,8]
[383912160,1757171536290,-543.85378209,0.00037534,8]
[383912161,1757171536300,-400.0,0.00037534,8]
[383912162,1757171536310,-400.0,0.00037534,8]
[383912163,1757171536320,-400.0,0.00037534,8]
[383912164,1757171536330,-400.0,0.00037534,8]
[383912165,1757171536339,-474.84,0.00037534,8]
[383912166,1757171536349,-400.0,0.00037534,8]
[383912167,1757171536359,-400.0,0.00037534,8]
[383912168,1757171536368,-400.0,0.00037534,8]
[383912169,1757171536378,-400.0,0.00037534,8]
[383912170,1757171536388,-567.14,0.00037534,8]
[383912171,1757171536398,-400.0,0.00037534,8]
[383912172,1757171536407,-400.0,0.00037534,8]
[383912173,1757171536417,-567.78,0.00037534,8]
[383912174,1757171536427,-400.0,0.00037534,8]
[383912175,1757171536436,-400.0,0.00037534,8]
[383912176,1757171536446,-400.0,0.00037534,8]
[383912177,1757171536455,-452.26,0.00037534,8]
[383912178,1757171536466,-400.0,0.00037534,8]
[383912179,1757171536475,-400.0,0.00037534,8]
[383912180,1757171536484,-414.87974651,0.00037534,8]
[383912181,1757171536495,-408.29,0.00037534,8]
[383912182,1757171536504,-400.0,0.00037534,8]
[383912183,1757171536515,-1289.31,0.00037534,8]
[383912184,1757171536525,-500.0,0.00037534,8]
[383912185,1757171536535,-440.59,0.00037534,8]
[383912186,1757171536544,-400.0,0.00037534,8]
[383912187,1757171536554,-400.0,0.00037534,8]
[383912188,1757171536568,-580.24,0.00037534,8]
[383912189,1757171536578,-408.25,0.00037534,8]
[383912190,1757171536588,-661.4,0.00037534,8]
[383912191,1757171536598,-428.75,0.00037534,8]
[383912192,1757171536607,-400.0,0.00037534,8]
[383912193,1757171536617,-400.0,0.00037534,8]
[383912194,1757171536626,-443.43739557,0.00037534,8]
[383912195,1757171536638,-400.0,0.00037534,8]
[383912196,1757171536648,-400.0,0.00037534,8]
[383912197,1757171536658,-400.0,0.00037534,8]
[383912198,1757171536667,-400.0,0.00037534,8]
[383912199,1757171536677,-400.0,0.00037534,8]
[383912200,1757171536688,-508.29,0.00037534,8]
[383912201,1757171536697,-400.0,0.00037534,8]
[383912202,1757171536707,-400.0,0.00037534,8]
[383912203,1757171536717,-400.0,0.00037534,8]
[383912204,1757171536727,-400.0,0.00037534,8]
[383912205,1757171536737,-400.0,0.00037534,8]
[383912206,1757171536746,-400.0,0.00037534,8]
[383912207,1757171536756,-6447.51,0.00037534,5]
[383912208,1757171536766,-400.0,0.00037534,8]
[383912209,1757171536776,-400.0,0.00037534,8]
[383912210,1757171536786,-430.2,0.00037534,8]
[383912211,1757171536796,-526.9,0.00037534,8]
[383912212,1757171536805,-400.0,0.00037534,8]
[383912213,1757171536814,-400.0,0.00037534,8]
[383912214,1757171536824,-541.21,0.00037534,8]
[383912215,1757171536834,-662.69,0.00037534,8]
[383912216,1757171536844,-400.0,0.00037534,8]
[383912217,1757171536854,-400.0,0.00037534,8]
[383912218,1757171536864,-400.0,0.00037534,8]
[383912219,1757171536874,-580.33,0.00037534,8]
[383912220,1757171536885,-400.0,0.00037534,8]
[383912221,1757171536895,-513.04,0.00037534,8]
[383912222,1757171536906,-400.0,0.00037534,8]
[383912223,1757171536915,-400.0,0.00037534,8]
[383912224,1757171536926,-400.0,0.00037534,8]
[383912225,1757171536938,-745.7,0.00037534,8]
[383912226,1757171536949,-400.0,0.00037534,8]
[383912227,1757171536959,-150.79014463,0.00037534,8]
[383912228,1757171536970,-546.38,0.00037534,8]
[383912229,1757171536980,-400.0,0.00037534,8]
[383912230,1757171536990,-400.0,0.00037534,8]
[383912231,1757171537000,-400.0,0.00037534,8]
[383912232,1757171537010,-424.59,0.00037534,8]
[383912233,1757171537020,-400.0,0.00037534,8]
[383912234,1757171537030,-400.0,0.00037534,8]
[383912235,1757171537040,-400.0,0.00037534,8]
[383912236,1757171537051,-400.0,0.00037534,8]
[383912237,1757171537061,-494.65,0.00037534,8]
[383912238,1757171537071,-400.0,0.00037534,8]
[383912239,1757171537081,-400.0,0.00037534,8]
[383912240,1757171537091,-400.0,0.00037534,8]
[383912241,1757171537104,-423.02,0.00037534,8]
[383912242,1757171537114,-485.39,0.00037534,8]
[383912243,1757171537124,-414.99968945,0.00037534,8]
[383912244,1757171537134,-400.0,0.00037534,8]
[383912245,1757171537144,-825.62,0.00037534,8]
[383912246,1757171537154,-526.47,0.00037534,8]
[383912247,1757171537163,-400.0,0.00037534,8]
[383912248,1757171537173,-400.0,0.00037534,8]
[383912249,1757171537183,-400.0,0.00037534,8]
[383912250,1757171537192,-400.0,0.00037534,8]
[383912251,1757171537202,-400.0,0.00037534,8]
[383912252,1757171537212,-516.31,0.00037534,8]
[383912253,1757171537222,-403.26,0.00037534,8]
[383912254,1757171537232,-443.32,0.00037534,8]
[383912255,1757171537242,-497.89,0.00037534,8]
[383912256,1757171537251,-412.76232702,0.00037534,7]
[383912257,1757171537261,-625.5,0.00037534,8]
[383912258,1757171537271,-501.87,0.00037534,8]
[383912259,1757171537281,-400.0,0.00037534,8]
[383912260,1757171537291,-400.0,0.00037534,8]
[383912261,1757171537300,-622.59,0.00037534,8]
[383912262,1757171537311,-400.0,0.00037534,8]
[383912263,1757171537321,-400.0,0.00037534,8]
[383912264,1757171537331,-400.0,0.00037534,8]
[383912265,1757171537340,-704.99,0.00037534,8]
[383912266,1757171537349,-810.84,0.00037534,8]
[383912267,1757171537359,-438.33,0.00037534,8]
[383912268,1757171537368,-400.0,0.00037534,8]
[383912269,1757171537378,-400.0,0.00037534,8]
[383912270,1757171537388,-400.0,0.00037534,8]
[383912271,1757171537397,-409.9,0.00037534,8]
[383912272,1757171537406,-400.0,0.00037534,8]
[383912273,1757171537416,-763.55,0.00037534,8]
[383912274,1757171537425,-414.77367182,0.00037534,8]
[383912275,1757171537435,-405.43954912,0.00037534,8]
[383912276,1757171537445,-400.0,0.00037534,8]
[383912277,1757171537455,-400.0,0.00037534,8]
[383912278,1757171537465,-400.0,0.00037534,8]
[383912279,1757171537474,-400.0,0.00037534,8]
[383912280,1757171537484,-505.84,0.00037534,8]
[383912281,1757171537493,-469.66,0.00037534,8]
[383912282,1757171537502,-400.0,0.00037534,8]
[383912283,1757171537511,-400.0,0.00037534,8]
[383912284,1757171537522,-492.82,0.00037534,8]
[383912285,1757171537532,-400.0,0.00037534,8]
[383912286,1757171537542,-432.82,0.00037534,8]
[383912287,1757171537552,-412.63252074,0.00037534,8]
[383912288,1757171537566,-400.0,0.00037534,8]
[383912289,1757171537575,-400.0,0.00037534,8]
[383912290,1757171537585,-513.12966175,0.00037534,8]
[383912291,1757171537595,-708.31,0.00037534,8]
[383912292,1757171537606,-447.54,0.00037534,8]
[383912293,1757171537615,-400.0,0.00037534,8]
[383912294,1757171537625,-400.0,0.00037534,8]
[383912295,1757171537637,-902.07,0.00037534,8]
[383912296,1757171537646,-488.65,0.00037534,8]
[383912297,1757171537657,-400.0,0.00037534,8]
[383912298,1757171537666,-414.13,0.00037534,8]
[383912299,1757171537675,-400.0,0.00037534,8]
[383912300,1757171537685,-403.26,0.00037534,8]
[383912301,1757171537694,-697.99,0.00037534,8]
[383912302,1757171537703,-400.0,0.00037534,8]
[383912303,1757171537714,-400.0,0.00037534,8]
[383912304,1757171537725,-762.44,0.00037534,8]
[383912305,1757171537734,-400.0,0.00037534,8]
[383912306,1757171537744,-400.0,0.00037534,8]
[383912307,1757171537754,-439.57,0.00037534,8]
[383912308,1757171537763,-400.0,0.00037534,8]
[383912309,1757171537773,-536.59,0.00037534,8]
[383912310,1757171537783,-400.0,0.00037534,8]
[383912311,1757171537792,-400.0,0.00037534,8]
[383912312,1757171537802,-488.95,0.00037534,8]
[383912313,1757171537812,-400.0,0.00037534,8]
[383912314,1757171537822,-473.09,0.00037534,8]
[383912315,1757171537832,-425.74823865,0.00037534,8]
[383912316,1757171537841,-400.0,0.00037534,8]
[383912317,1757171537853,-400.0,0.00037534,8]
[383912318,1757171537863,-400.0,0.00037534,8]
[383912319,1757171537872,-151.0,0.00037534,30]
[383912320,1757171537882,-400.0,0.00037534,8]
[383912321,1757171537891,-262.482971,0.00037534,30]
[383912322,1757171537900,-489.25,0.00037534,8]
[383912323,1757171538000,-262.482971,0.00037534,30]
[383912324,1757171538010,-400.0,0.00037534,8]
[383912325,1757171538019,-400.0,0.00037534,8]
[383912326,1757171538029,-171.86834264,0.00037534,8]
[383912327,1757171538038,-262.482971,0.00037534,30]
[383912328,1757171538047,-400.0,0.00037534,8]
[383912329,1757171538057,-400.0,0.00037534,8]
[383912330,1757171538066,-262.482971,0.00037534,30]
[383912331,1757171538076,-410.53570388,0.00037534,8]
[383912332,1757171538086,-400.0,0.00037534,8]
[383912333,1757171538096,-764.96,0.00037534,8]
[383912334,1757171538106,-305.421068,0.00037534,30]
[383912335,1757171538115,-400.0,0.00037534,8]
[383912336,1757171538125,-400.0,0.00037534,8]
[383912337,1757171538136,-305.421068,0.00037534,30]
[383912338,1757171538145,-400.0,0.00037534,8]
[383912339,1757171538155,-406.21,0.00037534,8]
[383912340,1757171538164,-400.0,0.00037534,8]
[383912341,1757171538173,-400.0,0.00037534,8]
[383912342,1757171538183,-305.421068,0.00037534,30]
[383912343,1757171538192,-597.36,0.00037534,8]
[383912344,1757171538201,-305.421068,0.00037534,30]
[383912345,1757171538211,-413.64,0.00037534,8]
[383912346,1757171538220,-400.0,0.00037534,8]
[383912347,1757171538231,-400.0,0.00037534,8]
[383912348,1757171538240,-344.22450194,0.00037534,8]
[383912349,1757171538250,-510.83,0.00037534,8]
[383912350,1757171538260,-498.18,0.00037534,8]
[383912351,1757171538270,-152.717781,0.00037534,30]
[383912352,1757171538280,-400.0,0.00037534,8]
[383912353,1757171538290,-400.0,0.00037534,8]
[383912354,1757171538300,-407.94,0.00037534,8]
[383912355,1757171538310,-518.22,0.00037534,8]
[383912356,1757171538319,-400.0,0.00037534,8]
[383912357,1757171538328,-400.0,0.00037534,8]
[383912358,1757171538338,-400.0,0.00037534,8]
[383912359,1757171538347,-484.18,0.00037534,8]
[383912360,1757171538358,-461.56,0.00037534,8]
[383912361,1757171538368,-523.48,0.00037534,8]
[383912362,1757171538377,-151.0,0.00037534,30]
[383912363,1757171538388,-400.0,0.00037534,8]
[383912364,1757171538397,-400.0,0.00037534,8]
[383912365,1757171538405,-400.0,0.00037534,8]
[383912366,1757171538413,-455.8,0.00037534,8]
[383912367,1757171538422,-400.0,0.00037534,8]
[383912368,1757171538431,-400.0,0.00037534,8]
[383912369,1757171538441,-400.0,0.00037534,8]
[383912370,1757171538451,-254.6315,0.00037534,30]
[383912371,1757171538460,-400.0,0.00037534,8]
[383912372,1757171538469,-400.0,0.00037534,8]
[383912373,1757171538479,-254.6315,0.00037534,30]
[383912374,1757171538488,-400.0,0.00037534,8]
[383912375,1757171538498,-771.26,0.00037534,8]
[383912376,1757171538507,-254.6315,0.00037534,30]
[383912377,1757171538517,-248.534305,0.00037534,30]
[383912378,1757171538526,-321.93885,0.00037534,30]
[383912379,1757171538537,-400.0,0.00037534,8]
[383912380,1757171538546,-254.6315,0.00037534,30]
[383912381,1757171538556,-235.951727,0.00037534,8]
[383912382,1757171538567,-529.03,0.00037534,8]
[383912383,1757171538577,-321.93885,0.00037534,30]
[383912384,1757171538586,-400.0,0.00037534,8]
[383912385,1757171538596,-747.978665,0.00037534,30]
[383912386,1757171538607,-339.481056,0.00037534,30]
[383912387,1757171538616,-400.0,0.00037534,8]
[383912388,1757171538627,-747.978665,0.00037534,30]
[383912389,1757171538638,-321.93885,0.00037534,30]
[383912390,1757171538647,-400.0,0.00037534,8]
[383912391,1757171538658,-400.0,0.00037534,8]
[383912392,1757171538669,-151.0,0.00037534,30]
[383912393,1757171538678,-747.978665,0.00037534,30]
[383912394,1757171538687,-339.481056,0.00037534,30]
[383912395,1757171538696,-321.93885,0.00037534,30]
[383912396,1757171538705,-747.978665,0.00037534,30]
[383912397,1757171538714,-339.481056,0.00037534,30]
[383912398,1757171538723,-400.0,0.00037534,8]
[383912399,1757171538733,-488.2,0.00037534,8]
[383912400,1757171538743,-151.0,0.00037534,30]
[383912401,1757171538753,-339.481056,0.00037534,30]
[383912402,1757171538763,-400.0,0.00037534,8]
[383912403,1757171538772,-151.0,0.00037534,30]
[383912404,1757171538782,-400.0,0.00037534,8]
[383912405,1757171538792,-151.0,0.00037534,30]
[383912406,1757171538802,-400.0,0.00037534,8]
[383912407,1757171538812,-151.0,0.00037534,30]
[383912408,1757171538822,-400.0,0.00037534,8]
[383912409,1757171538833,-400.0,0.00037534,8]
[383912410,1757171538843,-151.0,0.00037534,30]
[383912411,1757171538852,-514.33,0.00037534,8]
[383912412,1757171538863,-400.0,0.00037534,8]
[383912413,1757171538873,-400.0,0.00037534,8]
[383912414,1757171538883,-151.0,0.00037534,30]
[383912415,1757171538892,-400.0,0.00037534,8]
[383912416,1757171538902,-446.5,0.00037534,8]
[383912417,1757171538912,-151.0,0.00037534,30]
[383912418,1757171538921,-957.34,0.00037534,8]
[383912419,1757171538931,-151.0,0.00037534,30]
[383912420,1757171538942,-151.0,0.00037534,30]
[383912421,1757171538952,-2661.89,0.00037534,8]
[383912422,1757171538962,-400.0,0.00037534,8]
[383912423,1757171538972,-151.0,0.00037534,30]
[383912424,1757171538982,-151.0,0.00037534,30]
[383912425,1757171538993,-151.0,0.00037534,10]
[383912426,1757171539003,-238.412605,0.00037534,30]
[383912427,1757171539013,-400.0,0.00037534,8]
[383912428,1757171539022,-400.0,0.00037534,8]
[383912429,1757171539031,-238.412605,0.00037534,30]
[383912430,1757171539041,-151.0,0.00037534,10]
[383912431,1757171539051,-400.0,0.00037534,8]
[383912432,1757171539060,-443.95,0.00037534,8]
[383912433,1757171539070,-238.412605,0.00037534,30]
[383912434,1757171539081,-151.0,0.00037534,30]
[383912435,1757171539091,-522.75,0.00037534,8]
[383912436,1757171539102,-238.412605,0.00037534,30]
[383912437,1757171539112,-151.365262,0.00037534,30]
[383912438,1757171539122,-400.0,0.00037534,8]
[383912439,1757171539133,-151.0,0.00037534,30]
[383912440,1757171539144,-1080.71,0.00037534,8]
[383912441,1757171539154,-151.0,0.00037534,30]
[383912442,1757171539164,-400.0,0.00037534,8]
[383912443,1757171539174,-151.0,0.00037534,30]
[383912444,1757171539184,-151.0,0.00037534,30]
[383912445,1757171539194,-631.51,0.00037534,8]
[383912446,1757171539204,-400.0,0.00037534,8]
[383912447,1757171539213,-151.0,0.00037534,30]
[383912448,1757171539223,-423.77,0.00037534,8]
[383912449,1757171539233,-644.322575,0.00037534,30]
[383912450,1757171539242,-665.38,0.00037534,8]
[383912451,1757171539252,-210.656511,0.00037534,30]
[383912452,1757171539262,-346.418084,0.00037534,30]
[383912453,1757171539271,-644.322575,0.00037534,30]
[383912454,1757171539281,-438.86,0.00037534,8]
[383912455,1757171539291,-210.656511,0.00037534,30]